[Event "23rd Pirc Memorial Juniors 202"]
[Site "Maribor"]
[Date "2020.08.13"]
[Round "4.3"]
[White "Heric, Meta"]
[Black "Lavrencic, Matic"]
[Result "0-1"]
[ECO "B21"]
[WhiteElo "1287"]
[BlackElo "1902"]
[Annotator "RC"]
[PlyCount "88"]
[EventDate "2020.08.12"]
[EventType "tourn"]
[EventCountry "SLO"]
[SourceTitle "playchess.com"]
[Source "ChessBase"]
[SourceQuality "1"]
[TimeControl "3600+30"]

1. e4 {[%emt 0:00:00]} c5 {[%emt 0:00:00]} 2. Nc3 {[%emt 0:00:00]} e6 {[%emt 0:00:00]} 3. f4 {[%emt 0:00:08]} d5 {[%emt 0:00:00]} 4. Nf3 {[%emt 0:03:34]} dxe4 {[%emt 0:00:19]} 5. Nxe4 {[%emt 0:00:25]} Nc6 {[%emt 0:00:06]} 6. Bb5 {[%emt 0:00:17]} Bd7 {[%emt 0:00:29]} 7. O-O {[%emt 0:00:51]} a6 {[%emt 0:00:22]} 8. Bxc6 {[%emt 0:01:11]} Bxc6 {[%emt 0:00:20]} 9. Qe1 {[%emt 0:01:35]} Be7 {[%emt 0:01:30]} 10. d3 {[%emt 0:02:43]} Nh6 {[%emt 0:01:04]} 11. Qc3 {[%emt 0:04:29]} O-O {[%emt 0:01:49]} 12. Nxc5 {[%emt 0:01:25]} Rc8 {[%emt 0:04:17]} 13. d4 {[%emt 0:03:31]} b6 {[%emt 0:01:12]} 14. Nb3 {[%emt 0:04:19]} Bb5 {[%emt 0:00:27]} 15. Qe1 {[%emt 0:00:51]} Bxf1 {[%emt 0:00:06]} 16. Qxf1 {[%emt 0:00:18]} Rxc2 {[%emt 0:00:54]} 17. Qxa6 {[%emt 0:01:01]} Nf5 {[%emt 0:01:04]} 18. Qd3 {[%emt 0:01:51]} Rc7 {[%emt 0:00:30]} 19. h3 {[%emt 0:07:29]} Qd5 {[%emt 0:01:22]} 20. Be3 {[%emt 0:07:35]} Rfc8 {[%emt 0:00:25]} 21. Rc1 {[%emt 0:03:02]} Rxc1+ {[%emt 0:00:37]} 22. Nxc1 {[%emt 0:00:12]} Qc4 {[%emt 0:02:46]} 23. Qxc4 {[%emt 0:03:45]} Rxc4 {[%emt 0:00:09]} 24. Bd2 {[%emt 0:01:47]} Nxd4 {[%emt 0:00:17]} 25. Nxd4 {[%emt 0:00:30]} Rxd4 {[%emt 0:00:06]} 26. Nb3 {[%emt 0:00:08]} Rc4 {[%emt 0:00:39]} 27. Be3 {[%emt 0:01:10]} Rc2 {[%emt 0:00:38]} 28. Bd4 {[%emt 0:00:27]} Bf6 {[%emt 0:00:12]} 29. Bxb6 {[%emt 0:02:13]} Rxb2 {[%emt 0:00:11]} 30. Bd4 {[%emt 0:01:56]} Bxd4+ {[%emt 0:00:15]} 31. Nxd4 {[%emt 0:00:07]} Rxa2 {[%emt 0:00:06]} 32. Nf3 {[%emt 0:00:20]} f6 {[%emt 0:00:23]} 33. g4 {[%emt 0:00:26]} Ra3 {[%emt 0:00:07]} 34. Kg2 {[%emt 0:00:08]} Kf7 {[%emt 0:00:12]} 35. g5 {[%emt 0:00:16]} h6 {[%emt 0:01:06]} 36. h4 {[%emt 0:00:20]} Kg6 {[%emt 0:01:56]} 37. gxf6 {[%emt 0:00:36]} gxf6 {[%emt 0:00:08]} 38. Kg3 {[%emt 0:00:36]} Kf5 {[%emt 0:00:25]} 39. Kg2 {[%emt 0:00:36]} Rxf3 {[%emt 0:00:25]} 40. Kxf3 {[%emt 0:00:09]} h5 {[%emt 0:00:03]} 41. Kg3 {[%emt 0:00:16]} Ke4 {[%emt 0:00:05]} 42. Kf2 {[%emt 0:00:37]} Kxf4 {[%emt 0:00:04]} 43. Ke2 {[%emt 0:00:13]} Kg4 {[%emt 0:00:01]} 44. Kf2 {[%emt 0:00:19]} Kxh4 {[%emt 0:00:06]} 0-1

[Event "23rd Pirc Memorial Juniors 202"]
[Site "Maribor"]
[Date "2020.08.13"]
[Round "4.4"]
[White "Drevensek, Doroteja"]
[Black "Javornik, Lina"]
[Result "1-0"]
[ECO "C46"]
[WhiteElo "1381"]
[BlackElo "1330"]
[Annotator "NA"]
[PlyCount "77"]
[EventDate "2020.08.12"]
[EventType "tourn"]
[EventCountry "SLO"]
[SourceTitle "playchess.com"]
[Source "ChessBase"]
[SourceQuality "1"]
[TimeControl "3600+30"]

1. e4 {[%emt 0:00:00]} e5 {[%emt 0:00:00]} 2. Nf3 {[%emt 0:00:00]} Nc6 {[%emt 0:00:00]} 3. Nc3 {[%emt 0:00:07]} Bc5 {[%emt 0:00:49]} 4. Nxe5 {[%emt 0:00:12]} Nxe5 {[%emt 0:00:22]} 5. d4 {[%emt 0:00:07]} Bd6 {[%emt 0:00:01]} 6. dxe5 {[%emt 0:00:30]} Bxe5 {[%emt 0:00:33]} 7. Bd2 {[%emt 0:02:21]} Nf6 {[%emt 0:00:31]} 8. Bd3 {[%emt 0:00:22]} c6 {[%emt 0:01:03]} 9. O-O {[%emt 0:03:23]} Qb6 {[%emt 0:03:04]} 10. Rb1 {[%emt 0:04:19]} O-O {[%emt 0:02:00]} 11. h3 {[%emt 0:09:44]} d5 {[%emt 0:01:49]} 12. exd5 {[%emt 0:06:33]} Nxd5 {[%emt 0:02:14]} 13. Nxd5 {[%emt 0:00:53]} cxd5 {[%emt 0:00:11]} 14. Qh5 {[%emt 0:00:28]} f5 {[%emt 0:01:43]} 15. Qf3 {[%emt 0:11:56]} Be6 {[%emt 0:05:08]} 16. Rfe1 {[%emt 0:02:34]} Qd6 {[%emt 0:01:10]} 17. a3 {[%emt 0:01:40]} b6 {[%emt 0:02:19]} 18. Bb4 {[%emt 0:00:31]} Qc7 {[%emt 0:01:42]} 19. Bxf8 {[%emt 0:00:31]} Rxf8 {[%emt 0:00:27]} 20. Qe3 {[%emt 0:02:09]} Bh2+ {[%emt 0:00:27]} 21. Kh1 {[%emt 0:00:26]} Rf6 {[%emt 0:00:42]} 22. Qf3 {[%emt 0:06:43]} Bf4 {[%emt 0:02:44]} 23. Rxe6 {[%emt 0:08:11]} Rxe6 {[%emt 0:01:19]} 24. Qxd5 {[%emt 0:00:08]} Qe5 {[%emt 0:01:05]} 25. Bc4 {[%emt 0:01:05]} Kf7 {[%emt 0:02:53]} 26. Qxe6+ {[%emt 0:00:36]} Qxe6 {[%emt 0:00:30]} 27. Bxe6+ {[%emt 0:00:30]} Kxe6 {[%emt 0:00:30]} 28. Rd1 {[%emt 0:00:00]} b5 {[%emt 0:01:14]} 29. g3 {[%emt 0:00:01]} Be5 {[%emt 0:00:10]} 30. b3 {[%emt 0:00:22]} Bd6 {[%emt 0:01:01]} 31. a4 {[%emt 0:00:11]} b4 {[%emt 0:00:30]} 32. Kg2 {[%emt 0:00:29]} g5 {[%emt 0:01:01]} 33. h4 {[%emt 0:00:31]} g4 {[%emt 0:00:34]} 34. f3 {[%emt 0:00:23]} h5 {[%emt 0:00:30]} 35. Rd3 {[%emt 0:01:17]} Be5 {[%emt 0:00:55]} 36. Rd8 {[%emt 0:02:07]} a5 {[%emt 0:01:08]} 37. Ra8 {[%emt 0:00:34]} Bc7 {[%emt 0:00:43]} 38. Rh8 {[%emt 0:00:57]} Kf7 {[%emt 0:00:38]} 39. Rh7+ {[%emt 0:00:12]} 1-0

[Event "23rd Pirc Memorial Juniors 202"]
[Site "Maribor"]
[Date "2020.08.13"]
[Round "4.5"]
[White "Guid, Taja"]
[Black "Centrih, Aleks"]
[Result "1/2-1/2"]
[ECO "D15"]
[WhiteElo "1705"]
[BlackElo "1746"]
[Annotator "NA"]
[PlyCount "95"]
[EventDate "2020.08.12"]
[EventType "tourn"]
[EventCountry "SLO"]
[SourceTitle "playchess.com"]
[Source "ChessBase"]
[SourceQuality "1"]
[TimeControl "3600+30"]

1. d4 {[%emt 0:00:00]} d5 {[%emt 0:00:00]} 2. c4 {[%emt 0:00:00]} c6 {[%emt 0:00:00]} 3. Nf3 {[%emt 0:00:19]} Nf6 {[%emt 0:00:00]} 4. e3 {[%emt 0:01:40]} a6 {[%emt 0:00:03]} 5. Nc3 {[%emt 0:01:34]} b5 {[%emt 0:00:04]} 6. c5 {[%emt 0:04:31]} Bg4 {[%emt 0:03:13]} 7. h3 {[%emt 0:02:17]} Bxf3 {[%emt 0:00:56]} 8. Qxf3 {[%emt 0:00:13]} g6 {[%emt 0:00:06]} 9. Bd3 {[%emt 0:02:06]} Bg7 {[%emt 0:00:41]} 10. O-O {[%emt 0:01:14]} O-O {[%emt 0:01:42]} 11. b3 {[%emt 0:01:59]} e5 {[%emt 0:03:13]} 12. Bc2 {[%emt 0:01:38]} Nbd7 {[%emt 0:02:34]} 13. Bb2 {[%emt 0:01:07]} a5 {[%emt 0:09:31]} 14. Qd1 {[%emt 0:03:12]} Re8 {[%emt 0:05:05]} 15. Ne2 {[%emt 0:03:01]} exd4 {[%emt 0:02:45]} 16. exd4 {[%emt 0:00:15]} Ne4 {[%emt 0:01:07]} 17. Bxe4 {[%emt 0:01:00]} Rxe4 {[%emt 0:04:00]} 18. Qc2 {[%emt 0:03:47]} Re8 {[%emt 0:04:08]} 19. Rad1 {[%emt 0:01:39]} Nf6 {[%emt 0:01:09]} 20. Rfe1 {[%emt 0:03:34]} Ne4 {[%emt 0:01:54]} 21. f3 {[%emt 0:00:19]} Nf6 {[%emt 0:03:20]} 22. Bc1 {[%emt 0:00:55]} Nh5 {[%emt 0:02:09]} 23. Qd3 {[%emt 0:03:34]} Qh4 {[%emt 0:02:21]} 24. Be3 {[%emt 0:02:13]} Ng3 {[%emt 0:02:39]} 25. Nxg3 {[%emt 0:00:44]} Qxg3 {[%emt 0:00:36]} 26. Bf2 {[%emt 0:02:40]} Qf4 {[%emt 0:00:39]} 27. Be3 {[%emt 0:00:56]} Qc7 {[%emt 0:02:25]} 28. Qd2 {[%emt 0:01:26]} a4 {[%emt 0:04:10]} 29. Bf4 {[%emt 0:02:29]} Rxe1+ {[%emt 0:01:44]} 30. Rxe1 {[%emt 0:00:06]} Qd7 {[%emt 0:00:04]} 31. Be5 {[%emt 0:06:07]} axb3 {[%emt 0:00:52]} 32. axb3 {[%emt 0:00:11]} Re8 {[%emt 0:06:39]} 33. Bxg7 {[%emt 0:01:18]} Kxg7 {[%emt 0:00:05]} 34. Kf2 {[%emt 0:00:41]} Ra8 {[%emt 0:01:31]} 35. Qg5 {[%emt 0:03:45]} Ra2+ {[%emt 0:02:39]} 36. Re2 {[%emt 0:00:18]} Rxe2+ {[%emt 0:00:39]} 37. Kxe2 {[%emt 0:00:00]} Qe6+ {[%emt 0:00:36]} 38. Qe3 {[%emt 0:02:32]} Qf5 {[%emt 0:00:40]} 39. Qc1 {[%emt 0:04:20]} h6 {[%emt 0:01:41]} 40. g4 {[%emt 0:00:56]} Qd7 {[%emt 0:00:55]} 41. Qf4 {[%emt 0:00:51]} Qe6+ {[%emt 0:00:54]} 42. Qe3 {[%emt 0:01:04]} g5 {[%emt 0:00:57]} 43. Qxe6 {[%emt 0:03:37]} fxe6 {[%emt 0:00:05]} 44. Ke3 {[%emt 0:00:07]} Kf6 {[%emt 0:00:32]} 45. f4 {[%emt 0:00:29]} Kg6 {[%emt 0:00:49]} 46. Kf3 {[%emt 0:00:11]} b4 {[%emt 0:00:25]} 47. Kg3 {[%emt 0:01:10]} Kf6 {[%emt 0:00:13]} 48. Kf3 {[%emt 0:02:48]} 1/2-1/2

[Event "23rd Pirc Memorial Juniors 202"]
[Site "Maribor"]
[Date "2020.08.14"]
[Round "5.1"]
[White "Centrih, Aleks"]
[Black "Drevensek, Gasper"]
[Result "1/2-1/2"]
[ECO "B51"]
[WhiteElo "1746"]
[BlackElo "1446"]
[Annotator "NA RC"]
[PlyCount "65"]
[EventDate "2020.08.12"]
[EventType "tourn"]
[EventCountry "SLO"]
[SourceTitle "playchess.com"]
[Source "ChessBase"]
[SourceQuality "1"]
[TimeControl "3600+30"]

1. e4 {[%emt 0:00:00]} c5 {[%emt 0:00:00]} 2. Nf3 {[%emt 0:00:00]} d6 {[%emt 0:00:00]} 3. Bb5+ {[%emt 0:00:00]} Nd7 {[%emt 0:00:10]} 4. O-O {[%emt 0:00:00]} a6 {[%emt 0:00:23]} 5. Bd3 {[%emt 0:00:00]} Ngf6 {[%emt 0:00:47]} 6. c3 {[%emt 0:00:47]} e6 {[%emt 0:00:32]} 7. Bc2 {[%emt 0:00:13]} Be7 {[%emt 0:00:28]} 8. d4 {[%emt 0:00:10]} b5 {[%emt 0:00:24]} 9. a4 {[%emt 0:05:05]} Bb7 {[%emt 0:01:30]} 10. Nbd2 {[%emt 0:05:27]} O-O {[%emt 0:06:01]} 11. Qe2 {[%emt 0:04:51]} Qb6 {[%emt 0:03:03]} 12. Bd3 {[%emt 0:02:24]} b4 {[%emt 0:03:51]} 13. Nc4 {[%emt 0:05:38]} Qc6 {[%emt 0:02:52]} 14. Na5 {[%emt 0:01:29]} Qb6 {[%emt 0:03:06]} 15. Nxb7 {[%emt 0:00:29]} Qxb7 {[%emt 0:00:09]} 16. e5 {[%emt 0:04:56]} Nd5 {[%emt 0:02:26]} 17. Be4 {[%emt 0:00:53]} bxc3 {[%emt 0:01:03]} 18. Bxd5 {[%emt 0:04:54]} Qxd5 {[%emt 0:00:19]} 19. bxc3 {[%emt 0:00:16]} dxe5 {[%emt 0:01:49]} 20. dxe5 {[%emt 0:00:20]} Qc6 {[%emt 0:01:25]} 21. c4 {[%emt 0:04:18]} Bd8 {[%emt 0:07:09]} 22. Rd1 {[%emt 0:02:49]} Bc7 {[%emt 0:01:36]} 23. Bg5 {[%emt 0:01:05]} Rfe8 {[%emt 0:05:49]} 24. Ra2 {[%emt 0:02:33]} Nf8 {[%emt 0:00:52]} 25. h4 {[%emt 0:12:57]} h6 {[%emt 0:06:50]} 26. Bf4 {[%emt 0:02:06]} Ng6 {[%emt 0:02:15]} 27. Bg3 {[%emt 0:00:30]} Red8 {[%emt 0:02:44]} 28. Rxd8+ {[%emt 0:04:44]} Rxd8 {[%emt 0:00:07]} 29. h5 {[%emt 0:00:05]} Ne7 {[%emt 0:00:52]} 30. Bh4 {[%emt 0:00:04]} Rd7 {[%emt 0:00:06]} 31. Bxe7 {[%emt 0:02:06]} Rxe7 {[%emt 0:01:13]} 32. Nd2 {[%emt 0:00:28]} Rd7 {[%emt 0:01:44]} 33. Qe4 {[%emt 0:01:36]} 1/2-1/2

[Event "23rd Pirc Memorial Juniors 202"]
[Site "Maribor"]
[Date "2020.08.14"]
[Round "5.2"]
[White "Javornik, Lina"]
[Black "Guid, Taja"]
[Result "0-1"]
[ECO "B22"]
[WhiteElo "1330"]
[BlackElo "1705"]
[Annotator "NA RC"]
[PlyCount "62"]
[EventDate "2020.08.12"]
[EventType "tourn"]
[EventCountry "SLO"]
[SourceTitle "playchess.com"]
[Source "ChessBase"]
[SourceQuality "1"]
[TimeControl "3600+30"]

1. e4 {[%emt 0:00:00]} c5 {[%emt 0:00:00]} 2. c3 {[%emt 0:00:00]} g6 {[%emt 0:00:00]} 3. d4 {[%emt 0:00:32]} cxd4 {[%emt 0:00:00]} 4. cxd4 {[%emt 0:00:09]} d5 {[%emt 0:00:05]} 5. e5 {[%emt 0:00:22]} Nc6 {[%emt 0:00:27]} 6. Bb5 {[%emt 0:00:28]} Bd7 {[%emt 0:03:18]} 7. Nc3 {[%emt 0:01:07]} e6 {[%emt 0:00:22]} 8. a3 {[%emt 0:00:27]} Bg7 {[%emt 0:00:33]} 9. Nge2 {[%emt 0:02:11]} Nh6 {[%emt 0:01:09]} 10. Ng3 {[%emt 0:01:27]} O-O {[%emt 0:01:25]} 11. O-O {[%emt 0:00:32]} f6 {[%emt 0:01:32]} 12. f4 {[%emt 0:01:32]} Qb6 {[%emt 0:03:59]} 13. Bxc6 {[%emt 0:02:43]} Bxc6 {[%emt 0:00:45]} 14. Kh1 {[%emt 0:02:00]} fxe5 {[%emt 0:03:38]} 15. fxe5 {[%emt 0:06:54]} Rxf1+ {[%emt 0:00:24]} 16. Nxf1 {[%emt 0:01:21]} Nf5 {[%emt 0:00:59]} 17. Ne2 {[%emt 0:04:21]} Bb5 {[%emt 0:09:01]} 18. Nfg3 {[%emt 0:01:02]} Bxe2 {[%emt 0:06:29]} 19. Nxe2 {[%emt 0:01:04]} Rf8 {[%emt 0:02:40]} 20. g4 {[%emt 0:01:36]} Ne7 {[%emt 0:10:31]} 21. a4 {[%emt 0:02:19]} Nc6 {[%emt 0:03:25]} 22. b3 {[%emt 0:02:01]} Rf3 {[%emt 0:04:14]} 23. Rb1 {[%emt 0:02:22]} Kf7 {[%emt 0:04:19]} 24. Kg2 {[%emt 0:03:03]} Nxe5 {[%emt 0:01:39]} 25. dxe5 {[%emt 0:03:41]} Qf2+ {[%emt 0:00:40]} 26. Kh1 {[%emt 0:00:10]} Bxe5 {[%emt 0:04:47]} 27. Ng3 {[%emt 0:03:10]} Bxg3 {[%emt 0:01:47]} 28. hxg3 {[%emt 0:02:08]} Qxg3 {[%emt 0:00:44]} 29. Qe2 {[%emt 0:08:41]} Qh3+ {[%emt 0:01:16]} 30. Kg1 {[%emt 0:01:45]} Rg3+ {[%emt 0:00:53]} 31. Kf2 {[%emt 0:00:59]} Rg2+ {[%emt 0:00:06]} 0-1

[Event "23rd Pirc Memorial Juniors 202"]
[Site "Maribor"]
[Date "2020.08.14"]
[Round "5.4"]
[White "Javornik, Nik"]
[Black "Heric, Meta"]
[Result "1-0"]
[ECO "B75"]
[WhiteElo "1786"]
[BlackElo "1287"]
[Annotator "NA RC"]
[PlyCount "81"]
[EventDate "2020.08.12"]
[EventType "tourn"]
[EventCountry "SLO"]
[SourceTitle "playchess.com"]
[Source "ChessBase"]
[SourceQuality "1"]
[TimeControl "3600+30"]

1. e4 {[%emt 0:00:00]} c5 {[%emt 0:00:00]} 2. Nf3 {[%emt 0:00:00]} d6 {[%emt 0:00:00]} 3. d4 {[%emt 0:00:00]} cxd4 {[%emt 0:00:00]} 4. Nxd4 {[%emt 0:00:00]} Nf6 {[%emt 0:00:02]} 5. Nc3 {[%emt 0:00:00]} g6 {[%emt 0:00:09]} 6. f3 {[%emt 0:00:05]} Bg7 {[%emt 0:00:13]} 7. Be3 {[%emt 0:00:13]} a6 {[%emt 0:00:16]} 8. Qd2 {[%emt 0:00:14]} Nbd7 {[%emt 0:00:13]} 9. O-O-O {[%emt 0:00:55]} b5 {[%emt 0:00:53]} 10. g4 {[%emt 0:00:49]} Ne5 {[%emt 0:00:13]} 11. g5 {[%emt 0:00:41]} Nh5 {[%emt 0:01:35]} 12. f4 {[%emt 0:00:20]} Ng4 {[%emt 0:00:31]} 13. Bg1 {[%emt 0:00:13]} Bxd4 {[%emt 0:07:38]} 14. Bxd4 {[%emt 0:08:18]} f6 {[%emt 0:09:59]} 15. h3 {[%emt 0:03:30]} e5 {[%emt 0:02:03]} 16. hxg4 {[%emt 0:01:22]} Bxg4 {[%emt 0:01:57]} 17. Be2 {[%emt 0:03:29]} Bxe2 {[%emt 0:00:25]} 18. Nxe2 {[%emt 0:00:13]} exd4 {[%emt 0:00:21]} 19. Qxd4 {[%emt 0:00:28]} Rc8 {[%emt 0:02:55]} 20. gxf6 {[%emt 0:04:52]} Nxf6 {[%emt 0:01:29]} 21. Rd2 {[%emt 0:06:12]} O-O {[%emt 0:09:00]} 22. b3 {[%emt 0:04:59]} Qe7 {[%emt 0:04:14]} 23. Ng3 {[%emt 0:01:41]} Rfe8 {[%emt 0:01:48]} 24. Re1 {[%emt 0:02:54]} d5 {[%emt 0:01:41]} 25. e5 {[%emt 0:01:17]} Qa3+ {[%emt 0:01:40]} 26. Kb1 {[%emt 0:01:10]} Qc5 {[%emt 0:02:33]} 27. Red1 {[%emt 0:02:32]} Qxd4 {[%emt 0:01:11]} 28. Rxd4 {[%emt 0:00:02]} Ng4 {[%emt 0:00:43]} 29. R1d3 {[%emt 0:02:16]} Rf8 {[%emt 0:02:28]} 30. f5 {[%emt 0:05:10]} Nxe5 {[%emt 0:01:57]} 31. Re3 {[%emt 0:01:09]} Nc6 {[%emt 0:02:42]} 32. Rxd5 {[%emt 0:02:17]} Nb4 {[%emt 0:00:25]} 33. Rd7 {[%emt 0:02:38]} Rf7 {[%emt 0:03:38]} 34. Rxf7 {[%emt 0:01:44]} Kxf7 {[%emt 0:00:02]} 35. fxg6+ {[%emt 0:01:36]} hxg6 {[%emt 0:00:47]} 36. Re2 {[%emt 0:00:34]} Rc3 {[%emt 0:00:46]} 37. Ne4 {[%emt 0:00:51]} Rf3 {[%emt 0:00:58]} 38. Ng5+ {[%emt 0:00:01]} Kg7 {[%emt 0:00:48]} 39. Nxf3 {[%emt 0:00:05]} Nd5 {[%emt 0:00:24]} 40. Kb2 {[%emt 0:00:19]} Nf4 {[%emt 0:00:36]} 41. Re7+ {[%emt 0:01:09]} 1-0

[Event "23rd Pirc Memorial Juniors 202"]
[Site "Maribor"]
[Date "2020.08.14"]
[Round "5.5"]
[White "Kozlovic, Jernej"]
[Black "Kodric, Gasper"]
[Result "1/2-1/2"]
[ECO "B13"]
[WhiteElo "1445"]
[BlackElo "1624"]
[Annotator "NA RC"]
[PlyCount "147"]
[EventDate "2020.08.12"]
[EventType "tourn"]
[EventCountry "SLO"]
[SourceTitle "playchess.com"]
[Source "ChessBase"]
[SourceQuality "1"]
[TimeControl "3600+30"]

1. e4 {[%emt 0:00:00]} c6 {[%emt 0:00:00]} 2. d4 {[%emt 0:00:00]} d5 {[%emt 0:00:00]} 3. exd5 {[%emt 0:00:00]} cxd5 {[%emt 0:00:00]} 4. Bd3 {[%emt 0:00:00]} Nc6 {[%emt 0:00:00]} 5. c3 {[%emt 0:00:00]} Nf6 {[%emt 0:00:06]} 6. Bf4 {[%emt 0:00:00]} Bg4 {[%emt 0:00:12]} 7. Qb3 {[%emt 0:00:00]} Qc8 {[%emt 0:00:09]} 8. h3 {[%emt 0:02:36]} Bh5 {[%emt 0:00:11]} 9. Nd2 {[%emt 0:00:10]} e6 {[%emt 0:00:38]} 10. Ngf3 {[%emt 0:00:15]} Bg6 {[%emt 0:00:16]} 11. Bb5 {[%emt 0:01:35]} a6 {[%emt 0:01:59]} 12. Be2 {[%emt 0:00:37]} Be7 {[%emt 0:01:20]} 13. O-O {[%emt 0:00:10]} h6 {[%emt 0:00:25]} 14. Ne5 {[%emt 0:02:05]} Nxe5 {[%emt 0:00:20]} 15. Bxe5 {[%emt 0:00:32]} O-O {[%emt 0:01:15]} 16. a4 {[%emt 0:02:12]} Rd8 {[%emt 0:04:45]} 17. a5 {[%emt 0:02:57]} Bd6 {[%emt 0:03:11]} 18. Nf3 {[%emt 0:01:49]} Rb8 {[%emt 0:04:04]} 19. Qb6 {[%emt 0:04:06]} Bxe5 {[%emt 0:02:42]} 20. Nxe5 {[%emt 0:00:17]} Nd7 {[%emt 0:00:33]} 21. Nxd7 {[%emt 0:07:42]} Qxd7 {[%emt 0:00:27]} 22. Ra3 {[%emt 0:10:43]} Rdc8 {[%emt 0:09:01]} 23. Qb4 {[%emt 0:09:31]} Rc6 {[%emt 0:02:26]} 24. Rc1 {[%emt 0:04:32]} b5 {[%emt 0:01:21]} 25. Raa1 {[%emt 0:01:44]} Rbc8 {[%emt 0:04:04]} 26. Re1 {[%emt 0:01:21]} Qd6 {[%emt 0:01:06]} 27. Qxd6 {[%emt 0:00:24]} Rxd6 {[%emt 0:00:08]} 28. Bf1 {[%emt 0:00:48]} Rdc6 {[%emt 0:01:23]} 29. Re3 {[%emt 0:01:24]} Bc2 {[%emt 0:02:41]} 30. g3 {[%emt 0:01:16]} Rb8 {[%emt 0:02:20]} 31. Rc1 {[%emt 0:01:59]} Bb3 {[%emt 0:02:11]} 32. Ree1 {[%emt 0:02:49]} Rbc8 {[%emt 0:00:33]} 33. Ra1 {[%emt 0:00:27]} Bc4 {[%emt 0:01:23]} 34. Bg2 {[%emt 0:00:21]} Rb8 {[%emt 0:00:37]} 35. Rec1 {[%emt 0:02:11]} b4 {[%emt 0:07:06]} 36. cxb4 {[%emt 0:02:56]} Rxb4 {[%emt 0:00:21]} 37. Rc2 {[%emt 0:00:26]} Bb5 {[%emt 0:00:56]} 38. Rxc6 {[%emt 0:00:29]} Bxc6 {[%emt 0:00:06]} 39. Ra2 {[%emt 0:02:09]} Rxd4 {[%emt 0:01:44]} 40. b3 {[%emt 0:00:47]} Rd1+ {[%emt 0:00:53]} 41. Kh2 {[%emt 0:00:06]} Bb5 {[%emt 0:01:13]} 42. Rb2 {[%emt 0:00:52]} d4 {[%emt 0:02:26]} 43. Bf3 {[%emt 0:00:37]} Rc1 {[%emt 0:03:15]} 44. Rd2 {[%emt 0:01:40]} e5 {[%emt 0:00:24]} 45. Bd5 {[%emt 0:03:08]} Bc6 {[%emt 0:02:13]} 46. Bxc6 {[%emt 0:00:22]} Rxc6 {[%emt 0:00:07]} 47. Kg2 {[%emt 0:01:10]} Rc3 {[%emt 0:00:35]} 48. f4 {[%emt 0:00:16]} f6 {[%emt 0:01:30]} 49. b4 {[%emt 0:00:07]} Rb3 {[%emt 0:01:01]} 50. fxe5 {[%emt 0:00:24]} fxe5 {[%emt 0:00:35]} 51. Re2 {[%emt 0:00:07]} Rxb4 {[%emt 0:01:10]} 52. Rxe5 {[%emt 0:00:03]} Kf7 {[%emt 0:01:11]} 53. Kf3 {[%emt 0:00:34]} Rb3+ {[%emt 0:00:57]} 54. Kf4 {[%emt 0:00:49]} g5+ {[%emt 0:00:52]} 55. Kg4 {[%emt 0:01:34]} Rd3 {[%emt 0:03:56]} 56. h4 {[%emt 0:00:39]} Kf6 {[%emt 0:01:55]} 57. Rd5 {[%emt 0:00:07]} Ke6 {[%emt 0:00:28]} 58. Rd8 {[%emt 0:00:04]} Ke5 {[%emt 0:01:20]} 59. hxg5 {[%emt 0:00:21]} hxg5 {[%emt 0:00:13]} 60. Ra8 {[%emt 0:01:10]} Ra3 {[%emt 0:00:33]} 61. Rxa6 {[%emt 0:00:15]} d3 {[%emt 0:00:12]} 62. Ra8 {[%emt 0:00:11]} Ra4+ {[%emt 0:00:54]} 63. Kxg5 {[%emt 0:00:50]} Ke4 {[%emt 0:00:47]} 64. g4 {[%emt 0:01:17]} Ke3 {[%emt 0:00:37]} 65. Re8+ {[%emt 0:01:09]} Kf2 {[%emt 0:00:39]} 66. Rd8 {[%emt 0:00:18]} Rxa5+ {[%emt 0:00:08]} 67. Kh6 {[%emt 0:00:14]} Ke2 {[%emt 0:00:43]} 68. g5 {[%emt 0:00:09]} d2 {[%emt 0:00:23]} 69. g6 {[%emt 0:00:20]} d1=Q {[%emt 0:00:46]} 70. Rxd1 {[%emt 0:00:09]} Kxd1 {[%emt 0:00:10]} 71. g7 {[%emt 0:00:01]} Ra6+ {[%emt 0:00:26]} 72. Kh7 {[%emt 0:00:04]} Ra7 {[%emt 0:00:21]} 73. Kh8 {[%emt 0:00:04]} Rxg7 {[%emt 0:00:15]} 74. Kxg7 {[%emt 0:00:02]} 1/2-1/2